bitfinex/quotes_BTCUSD_20250617
["timestamp","ask_amount","ask_price","bid_price","bid_amount"]
[1750198108217,0.28753795,104730.0,104720.0,0.28193247]
[1750198108629,0.08702235,104730.0,104720.0,0.2914811]
[1750198109563,0.42702235,104730.0,104720.0,0.2914811]
[1750198109788,0.46970119,104730.0,104720.0,0.2914811]
[1750198110670,0.48879745,104730.0,104720.0,0.2914811]
[1750198111588,0.31363393,104730.0,104720.0,0.2914811]
[1750198112078,0.30408603,104730.0,104720.0,0.2914811]
[1750198112295,0.31363393,104730.0,104720.0,0.2914811]
[1750198112747,0.31363393,104730.0,104720.0,0.3335211]
[1750198113485,0.32318192,104730.0,104720.0,0.3335211]
[1750198113923,0.31363393,104730.0,104720.0,0.3335211]
[1750198114332,0.32318201,104730.0,104720.0,0.3335211]
[1750198114794,0.31363393,104730.0,104720.0,0.3335211]
[1750198114988,0.32318201,104730.0,104720.0,0.3335211]
[1750198115230,0.31363393,104730.0,104720.0,0.3335211]
[1750198115448,0.32318211,104730.0,104720.0,0.3335211]
[1750198115664,0.32318201,104730.0,104720.0,0.3335211]
[1750198116111,0.31363384,104730.0,104720.0,0.3335211]
[1750198116317,0.29453831,104730.0,104720.0,0.3335211]
[1750198117082,0.30408603,104730.0,104720.0,0.3335211]
[1750198118032,0.29453831,104730.0,104720.0,0.44430371]
[1750198120189,0.03871802,104730.0,104720.0,0.44430371]
[1750198120655,0.1140944,104750.0,104740.0,0.10858209]
[1750198120657,0.07641869,104780.0,104750.0,0.20547163]
[1750198120880,0.01908632,104780.0,104770.0,0.30181524]
[1750198121111,0.04807451,104780.0,104770.0,0.30181524]
[1750198121350,0.01001857,104780.0,104770.0,0.30181524]
[1750198121588,0.03805517,104780.0,104770.0,0.30181524]
[1750198121820,0.02910508,104780.0,104770.0,0.30181524]
[1750198122031,0.06818039,104780.0,104770.0,0.30181524]
[1750198122264,0.02910508,104780.0,104770.0,0.30181524]
[1750198123126,0.0386487,104780.0,104770.0,0.29227135]
[1750198123765,0.04819241,104780.0,104770.0,0.29227135]
[1750198124638,0.07746446,104780.0,104770.0,0.29227135]
[1750198124844,0.2683414,104780.0,104770.0,0.28272737]
[1750198126165,0.30617766,104780.0,104770.0,0.28272737]
[1750198127712,0.04785492,104780.0,104770.0,0.39350998]
[1750198127930,0.37831185,104780.0,104770.0,0.39350998]
[1750198129736,0.03831185,104780.0,104770.0,0.39350998]
[1750198132879,0.03831185,104780.0,104770.0,0.63456058]
[1750198133326,0.03831185,104780.0,104770.0,0.39350998]
[1750198137045,0.03831185,104780.0,104770.0,0.59394998]
[1750198138135,0.03831185,104780.0,104770.0,0.59794998]
[1750198138794,0.03831185,104780.0,104770.0,0.60094998]
[1750198140318,0.03831185,104780.0,104770.0,0.60086998]
[1750198140768,0.06694189,104780.0,104770.0,0.42788913]
[1750198140983,0.06694189,104780.0,104770.0,0.60086998]
[1750198141430,0.05739827,104780.0,104770.0,0.59686998]
[1750198141667,0.29505029,104780.0,104770.0,0.27618339]
[1750198141893,0.26736172,104780.0,104770.0,0.48508774]
[1750198142138,0.25781865,104780.0,104770.0,0.46699886]
[1750198142368,0.2482753,104780.0,104770.0,0.0334]
[1750198142609,0.2482753,104780.0,104770.0,0.40379904]
[1750198142861,0.30334991,104780.0,104770.0,0.41334366]
[1750198143086,0.29446428,104780.0,104770.0,0.41334366]
[1750198143307,0.30335261,104780.0,104770.0,0.41334366]
[1750198143542,0.30335261,104780.0,104770.0,0.43243263]
[1750198143773,0.32113713,104780.0,104770.0,0.50517698]
[1750198144002,0.13589216,104780.0,104770.0,0.50517698]
[1750198144232,0.09925064,104780.0,104770.0,0.50517698]
[1750198144701,0.04686488,104780.0,104770.0,0.50517608]
[1750198144945,0.06660238,104780.0,104770.0,0.50517562]
[1750198145411,0.06660229,104780.0,104770.0,0.50517562]
[1750198145637,0.06595777,104780.0,104770.0,0.50517562]
[1750198145868,0.07550121,104780.0,104770.0,0.50517562]
[1750198147040,0.07550364,104780.0,104770.0,0.50517562]
[1750198147695,0.08504726,104780.0,104770.0,0.50517562]
[1750198147910,0.09330677,104780.0,104770.0,0.50517562]
[1750198148356,0.10285039,104780.0,104770.0,0.50517562]
[1750198148683,0.08376333,104780.0,104770.0,0.50517562]
[1750198149140,0.08377482,104780.0,104770.0,0.50517562]
[1750198149341,0.08377473,104780.0,104770.0,0.50517562]
[1750198149519,0.07423166,104780.0,104770.0,0.50517562]
[1750198149717,0.07423157,104780.0,104770.0,0.50517562]
[1750198149919,0.07423157,104780.0,104770.0,0.61595823]
[1750198149920,0.06475208,104780.0,104770.0,0.61595823]
[1750198150233,0.04688546,104780.0,104770.0,0.61595823]
[1750198150797,0.03797262,104780.0,104770.0,0.61595823]
[1750198151071,0.04953511,104790.0,104780.0,0.29984728]
[1750198151319,0.03171635,104790.0,104780.0,0.39608904]
[1750198152353,0.00896037,104790.0,104780.0,0.39608904]
[1750198152750,0.00898098,104790.0,104780.0,0.39608904]
[1750198153975,0.03173696,104790.0,104780.0,0.39608904]
[1750198154563,0.07128501,104790.0,104780.0,0.39608904]
[1750198154768,0.03173696,104790.0,104780.0,0.39608904]
[1750198155106,0.03185429,104790.0,104780.0,0.39608904]
[1750198155817,0.03185429,104790.0,104780.0,0.55448904]
[1750198156147,0.04139645,104790.0,104780.0,0.59636904]
[1750198156352,0.03185429,104790.0,104780.0,0.59636904]
[1750198156930,0.04140013,104790.0,104780.0,0.59636904]
[1750198157155,0.04140004,104790.0,104780.0,0.59636904]
[1750198157761,0.42040563,104790.0,104780.0,0.59636904]
[1750198157974,0.42040554,104790.0,104780.0,0.59636904]
[1750198158185,0.41086347,104790.0,104780.0,0.59636904]
[1750198159053,0.40192643,104790.0,104780.0,0.59636904]
[1750198159468,0.42040578,104790.0,104780.0,0.59636904]
[1750198159878,0.4299481,104790.0,104780.0,0.59636904]
[1750198160117,0.42040576,104790.0,104780.0,0.59636904]
[1750198160335,0.40707479,104790.0,104780.0,0.59636904]
[1750198160773,0.40707479,104790.0,104780.0,0.82564904]
[1750198161231,0.42995381,104790.0,104780.0,0.82564904]
[1750198162272,0.41086931,104790.0,104780.0,0.82564904]
[1750198162487,0.42041156,104790.0,104780.0,0.82564904]
[1750198163467,0.43949776,104790.0,104780.0,0.82564904]
[1750198163710,0.44904056,104790.0,104780.0,0.82564913]
[1750198163890,0.43949776,104790.0,104780.0,0.83519229]
[1750198164260,0.43949758,104790.0,104780.0,0.83519229]
[1750198165094,0.42995505,104790.0,104780.0,0.83519229]
[1750198165511,0.42041252,104790.0,104780.0,0.83519229]
[1750198166001,0.40193214,104790.0,104780.0,0.83519229]
[1750198166202,0.42101646,104790.0,104780.0,0.83519229]
[1750198166445,0.41147421,104790.0,104780.0,0.83519229]
[1750198166650,0.42101655,104790.0,104780.0,0.83519229]
[1750198167099,0.42101646,104790.0,104780.0,0.83519229]
[1750198168057,0.42101655,104790.0,104780.0,0.83519229]
[1750198168468,0.42101646,104790.0,104780.0,0.83519229]
[1750198169506,0.41147421,104790.0,104780.0,0.83519229]
[1750198169924,0.40193214,104790.0,104780.0,0.83519229]
[1750198170344,0.41147439,104790.0,104780.0,0.83519229]
[1750198170750,0.42101692,104790.0,104780.0,0.83519229]
[1750198171138,0.3981379,104790.0,104780.0,0.83519229]
[1750198171595,0.38859537,104790.0,104780.0,0.83519229]
[1750198171734,0.39813781,104790.0,104780.0,0.83519229]
[1750198171932,0.40768043,104790.0,104780.0,0.83519229]
[1750198172129,0.39813781,104790.0,104780.0,0.83519229]
[1750198172777,0.40768034,104790.0,104780.0,0.63491229]
[1750198173005,0.40768034,104790.0,104780.0,0.83515229]
[1750198173750,0.41722305,104790.0,104780.0,0.49549983]
[1750198173986,0.61762375,104790.0,104780.0,0.71482643]
[1750198174415,0.42676585,104790.0,104780.0,0.71482643]
[1750198174850,0.42676585,104790.0,104780.0,0.71474643]
[1750198175739,0.41722305,104790.0,104780.0,0.71474643]
[1750198175989,0.23857063,104790.0,104780.0,0.71474643]
[1750198176231,0.23857127,104790.0,104780.0,0.71474643]
[1750198177109,0.23857127,104790.0,104780.0,0.52775612]
[1750198177326,0.24904078,104790.0,104780.0,0.66241983]
[1750198177534,0.24904078,104790.0,104780.0,0.72305014]
[1750198177746,0.24904078,104790.0,104780.0,0.70396345]
[1750198178467,0.24904078,104790.0,104780.0,0.71350698]
[1750198178722,0.24904078,104790.0,104780.0,0.72305042]
[1750198179151,0.05818243,104790.0,104780.0,0.73259358]
[1750198179546,0.26812538,104790.0,104780.0,0.73259358]
[1750198179947,0.06772468,104790.0,104780.0,0.73259358]
[1750198180126,0.05818197,104790.0,104780.0,0.73259358]
[1750198181126,0.06772468,104790.0,104780.0,0.73259358]
[1750198181319,0.05818197,104790.0,104780.0,0.73259358]
[1750198183475,0.0677244,104790.0,104780.0,0.73259358]
[1750198183882,0.07726711,104790.0,104780.0,0.73259358]
[1750198184208,0.0677244,104790.0,104780.0,0.73259358]
[1750198185147,0.06772431,104790.0,104780.0,0.73259358]
[1750198186328,0.07726693,104790.0,104780.0,0.73259358]
[1750198186888,0.08680964,104790.0,104780.0,0.73259358]
[1750198187287,0.27766754,104790.0,104780.0,0.73259358]
[1750198187493,0.27766818,104790.0,104780.0,0.73259358]
[1750198187871,0.07726739,104790.0,104780.0,0.73259358]
[1750198188799,0.27766809,104790.0,104780.0,0.73259358]
[1750198189005,0.27766864,104790.0,104780.0,0.73259358]
[1750198189443,0.07726785,104790.0,104780.0,0.73259358]
[1750198189650,0.06772505,104790.0,104780.0,0.73259358]
[1750198190064,0.05818234,104790.0,104780.0,0.73259358]
[1750198190284,0.05818197,104790.0,104780.0,0.73259358]
[1750198191738,0.06772468,104790.0,104780.0,0.73259358]
[1750198192356,0.05818197,104790.0,104780.0,0.73259358]
[1750198193432,0.06772431,104790.0,104780.0,0.73259358]
[1750198193637,0.05818178,104790.0,104780.0,0.73259358]
[1750198193860,0.03909719,104790.0,104780.0,0.73259358]
[1750198194068,0.05818188,104790.0,104780.0,0.73259358]
[1750198194274,0.01908469,104790.0,104780.0,0.73259358]
[1750198194935,0.05866724,104790.0,104780.0,0.73259358]
[1750198195379,0.0491248,104790.0,104780.0,0.73259358]
[1750198195590,0.05866724,104790.0,104780.0,0.73259358]
[1750198195724,0.0491248,104790.0,104780.0,0.73259358]
[1750198195919,0.05866724,104790.0,104780.0,0.73259358]
[1750198196819,0.0491248,104790.0,104780.0,0.73259358]
[1750198197039,0.05866724,104790.0,104780.0,0.73259358]
[1750198197667,0.0491248,104790.0,104780.0,0.73259358]
[1750198198955,0.03958255,104790.0,104780.0,0.73259358]
[1750198199384,0.58177112,104800.0,104790.0,0.28178575]
[1750198199826,0.58177112,104800.0,104790.0,0.27224341]
[1750198200603,0.58177112,104800.0,104790.0,0.28178594]
[1750198200848,0.58177112,104800.0,104790.0,0.29132838]
[1750198200849,0.58377112,104800.0,104790.0,0.29132838]
[1750198201825,0.58377112,104800.0,104790.0,0.28178594]
[1750198202251,0.62212719,104800.0,104790.0,0.28178594]
[1750198202795,0.62212643,104800.0,104790.0,0.33312838]
[1750198203718,0.62212643,104800.0,104790.0,0.32358594]
[1750198204123,0.66189998,104800.0,104790.0,0.32358594]
[1750198204936,0.62212643,104800.0,104790.0,0.32358594]
[1750198205476,0.61258364,104800.0,104790.0,0.31404359]
[1750198206155,0.61258364,104800.0,104790.0,0.3235863]
[1750198207560,0.61258364,104800.0,104790.0,0.4818263]
[1750198208344,0.60304157,104800.0,104790.0,0.4818263]
[1750198209432,0.6316813,104800.0,104790.0,0.4818263]
[1750198209642,0.6316813,104800.0,104790.0,0.47228359]
[1750198209895,0.6316813,104800.0,104790.0,0.07186]
[1750198210335,0.6316813,104800.0,104790.0,0.10226]
[1750198211181,0.63168257,104800.0,104790.0,0.30266079]
[1750198211602,0.63168257,104800.0,104790.0,0.11180289]
[1750198212195,0.63168257,104800.0,104790.0,0.10226]
[1750198212689,0.63168257,104800.0,104780.0,0.38728896]
[1750198212690,0.01908806,104770.0,104760.0,0.27670993]
[1750198212912,0.21952738,104770.0,104760.0,0.42973818]
[1750198213136,0.05329109,104770.0,104760.0,0.42975559]
[1750198213602,0.05329109,104770.0,104760.0,0.27151559]
[1750198213822,0.07770884,104770.0,104760.0,0.27151559]
[1750198214043,0.41770884,104770.0,104760.0,0.23175559]
[1750198214269,0.44060436,104770.0,104760.0,0.27151559]
[1750198215659,0.44060436,104770.0,104760.0,0.27451559]
[1750198215845,0.41618661,104770.0,104760.0,0.27351559]
[1750198216054,0.41618661,104770.0,104760.0,0.27151559]
[1750198216329,0.41718661,104770.0,104760.0,0.30221559]
[1750198216565,0.41818661,104770.0,104760.0,0.33361559]
[1750198216804,0.41818661,104770.0,104760.0,0.53407368]
[1750198217043,0.41818661,104770.0,104760.0,0.53407377]
[1750198217483,0.38574656,104770.0,104760.0,0.53407377]
[1750198218790,0.38574656,104770.0,104760.0,0.5436193]
[1750198218990,0.53289433,104770.0,104760.0,0.56270991]
[1750198219198,0.55198348,104770.0,104760.0,0.55316474]
[1750198219399,0.55198348,104770.0,104760.0,0.56271009]
[1750198220082,0.55198348,104770.0,104760.0,0.55316474]
[1750198220284,0.55198348,104770.0,104760.0,0.56271009]
[1750198220497,0.56152774,104770.0,104760.0,0.57225526]
[1750198221082,0.56152774,104770.0,104760.0,0.56271009]
[1750198221966,0.56152774,104770.0,104760.0,0.57225535]
[1750198222409,0.55198348,104770.0,104760.0,0.56271009]
[1750198226084,0.55198348,104770.0,104760.0,0.55316474]
[1750198226286,0.54243904,104770.0,104760.0,0.33361559]
[1750198226496,0.63382252,104770.0,104760.0,0.33361559]
[1750198226694,0.63382252,104770.0,104760.0,0.27151559]
[1750198226695,0.65665105,104770.0,104760.0,0.27151559]
[1750198226919,0.65665105,104770.0,104760.0,0.22975559]
[1750198227177,0.81639281,104770.0,104760.0,0.27151559]
[1750198227534,0.81639281,104770.0,104760.0,0.04223559]
[1750198227933,0.84503254,104770.0,104760.0,0.04223559]
[1750198228142,0.86864154,104770.0,104760.0,0.04223559]
[1750198228388,0.02864353,104730.0,104720.0,0.5155874]
[1750198228592,0.21961077,104730.0,104720.0,0.65358916]
[1750198228806,0.23870721,104730.0,104720.0,0.89891956]
[1750198229019,0.04773997,104730.0,104720.0,0.90846819]
[1750198229224,0.03819161,104730.0,104720.0,0.90846819]
[1750198229433,0.03819161,104730.0,104720.0,0.83221599]
[1750198229657,0.03819161,104730.0,104720.0,0.83426352]
[1750198229873,0.03819161,104730.0,104720.0,0.83726352]
[1750198232862,0.67516358,104730.0,104720.0,0.27612753]
[1750198233673,0.67516358,104730.0,104720.0,0.27112753]
[1750198233874,0.67516358,104730.0,104720.0,0.27412753]
[1750198234294,0.86650358,104730.0,104720.0,0.27412753]
[1750198234489,0.91950814,104730.0,104720.0,0.27412753]
[1750198235356,0.91950814,104730.0,104720.0,0.00304753]
[1750198235357,1.0157499,104730.0,104720.0,0.00304753]
[1750198235934,0.97188042,104730.0,104720.0,0.00304753]
[1750198236143,0.97188042,104730.0,104720.0,4.753e-05]
[1750198236578,0.97688042,104730.0,104720.0,4.753e-05]
[1750198238975,0.88096754,104730.0,104720.0,4.753e-05]
[1750198239595,0.90960727,104730.0,104720.0,4.753e-05]
[1750198240297,0.68806727,104730.0,104720.0,4.753e-05]
[1750198240520,0.56318578,104730.0,104720.0,0.25363301]
[1750198240742,0.56318578,104730.0,104720.0,0.31445128]
[1750198240932,0.56318578,104730.0,104720.0,0.30490228]
[1750198241220,0.56318578,104730.0,104720.0,0.10436753]
[1750198241430,0.65736534,104730.0,104720.0,0.04176753]
[1750198241848,0.65536534,104730.0,104720.0,0.04176753]
[1750198242146,0.65336534,104730.0,104720.0,0.04176753]
[1750198242510,0.65436534,104730.0,104720.0,0.04176753]
[1750198242843,0.71846578,104730.0,104720.0,0.04176753]
[1750198246035,0.78523722,104730.0,104720.0,0.04176753]
[1750198248424,0.88533925,104730.0,104720.0,0.04176753]
[1750198249078,0.53128483,104730.0,104720.0,0.04176753]
[1750198249530,0.96318483,104730.0,104720.0,0.04176753]
[1750198249745,1.24746576,104730.0,104720.0,0.04176753]
[1750198250426,1.25699988,104730.0,104720.0,0.04176753]
[1750198250632,1.25699988,104730.0,104720.0,4.753e-05]
[1750198251060,1.59699988,104730.0,104720.0,4.753e-05]
[1750198251274,0.69053457,104720.0,104710.0,0.04176]
[1750198251481,0.92724653,104720.0,104710.0,0.04176]
[1750198252334,0.96537824,104720.0,104710.0,0.04176]
[1750198252555,0.90891796,104720.0,104710.0,0.04176]
[1750198253025,0.87578625,104720.0,104710.0,0.04176]
[1750198253244,0.8854126,104720.0,104710.0,0.04176]
[1750198253706,0.87580048,104720.0,104710.0,0.04176]
[1750198253925,0.91393219,104720.0,104710.0,0.04176]
[1750198254192,1.01008141,104720.0,104710.0,0.04176]
[1750198254417,0.98156182,104720.0,104710.0,0.04176]
[1750198256693,0.8854126,104720.0,104710.0,0.04176]
[1750198256902,0.7027126,104720.0,104710.0,0.10556]
[1750198257123,0.86103733,104720.0,104710.0,0.10556]
[1750198259015,0.82290562,104720.0,104710.0,0.10556]
[1750198260061,0.82290562,104720.0,104710.0,0.07376]
[1750198260264,0.91905484,104720.0,104710.0,0.07376]
[1750198260464,0.91905484,104720.0,104710.0,0.04176]
[1750198260713,0.95135484,104720.0,104710.0,0.04176]
[1750198260838,0.82961287,104720.0,104710.0,0.04176]
[1750198261444,0.54055372,104710.0,104700.0,0.10496]
[1750198261708,0.60155562,104710.0,104700.0,0.10496]
[1750198261924,0.75983562,104710.0,104700.0,0.10496]
[1750198263002,0.75983562,104710.0,104700.0,0.29598196]
[1750198263193,0.75983562,104710.0,104700.0,0.10496]
[1750198266461,0.79281456,104710.0,104700.0,0.10496]
[1750198268580,0.88905632,104710.0,104700.0,0.10492]
[1750198269409,0.91768945,104710.0,104700.0,0.07322]
[1750198269767,0.91768945,104710.0,104700.0,0.10462]
[1750198271573,0.42010181,104710.0,104700.0,0.29564196]
[1750198271796,0.41058531,104710.0,104700.0,0.31474369]
[1750198272021,0.39148613,104710.0,104700.0,0.32429414]
[1750198272236,0.36284929,104710.0,104700.0,0.43507675]
[1750198273422,0.36284929,104710.0,104700.0,0.43707675]
[1750198273632,0.36284929,104710.0,104700.0,0.43507675]
[1750198274056,0.34,104710.0,104700.0,0.43907675]
[1750198274262,0.34,104710.0,104700.0,0.44007675]
[1750198274697,0.34,104710.0,104700.0,0.43907675]
[1750198275153,0.03239774,104720.0,104710.0,0.28155317]
[1750198275370,0.00954845,104720.0,104710.0,0.28155317]
[1750198275586,0.34954845,104720.0,104710.0,0.28155317]
[1750198275802,0.38762057,104730.0,104720.0,0.28153219]
[1750198276018,0.41051585,104730.0,104720.0,0.32325219]
[1750198276233,0.06096822,104730.0,104720.0,0.4340348]
[1750198276467,4.746e-05,104730.0,104720.0,0.4340348]
[1750198279280,0.06713979,104730.0,104720.0,0.4340348]
[1750198279528,0.6172032,104730.0,104720.0,0.59427489]
[1750198279711,0.3782387,104730.0,104720.0,0.60382352]
[1750198280093,0.57875412,104730.0,104720.0,0.60382352]
[1750198280321,0.57875476,104730.0,104720.0,0.60382352]
[1750198280488,0.57875476,104730.0,104720.0,0.60482352]
[1750198281415,0.6557255,104730.0,104720.0,0.60482352]
[1750198283007,0.63662997,104730.0,104720.0,0.41793727]
[1750198283219,0.63662997,104730.0,104720.0,0.58572627]
[1750198283412,0.63662997,104730.0,104720.0,0.59527517]
[1750198283656,0.67480123,104730.0,104720.0,0.59527517]
[1750198284422,0.67480123,104730.0,104720.0,0.61437261]
[1750198284636,0.59783049,104730.0,104720.0,0.61437261]
[1750198284842,0.39731461,104730.0,104720.0,0.61437261]
[1750198286514,0.39731461,104730.0,104720.0,0.41441261]
[1750198286763,0.40686279,104730.0,104720.0,0.41441261]
[1750198286968,0.59783003,104730.0,104720.0,0.41441261]
[1750198287343,0.40686279,104730.0,104720.0,0.41441261]
[1750198287784,0.39731461,104730.0,104720.0,0.61433261]
[1750198288015,0.41641033,104730.0,104720.0,0.61433261]
[1750198288999,0.40686215,104730.0,104720.0,0.61433261]
[1750198289877,0.38776626,104730.0,104720.0,0.61433261]
[1750198290281,0.39731398,104730.0,104720.0,0.61433261]
[1750198291461,0.37821872,104730.0,104720.0,0.61433261]
[1750198291676,0.39731398,104730.0,104720.0,0.61433261]
[1750198291850,0.39731389,104730.0,104720.0,0.61433261]
[1750198292713,0.40686161,104730.0,104720.0,0.61433261]
[1750198292898,0.39731389,104730.0,104720.0,0.61433261]
[1750198293657,0.39483389,104730.0,104720.0,0.61433261]
[1750198294227,0.40438161,104730.0,104720.0,0.61433261]
[1750198294398,0.42347796,104730.0,104720.0,0.61433261]
[1750198294764,0.41392978,104730.0,104720.0,0.61433261]
[1750198294971,0.40438188,104730.0,104720.0,0.61433261]
[1750198295692,0.37573872,104730.0,104720.0,0.61433261]
[1750198295899,0.38528626,104730.0,104720.0,0.61433261]
[1750198296116,0.37573872,104730.0,104720.0,0.61433261]
[1750198296316,0.38528626,104730.0,104720.0,0.61433261]
[1750198297247,0.37573872,104730.0,104720.0,0.61433261]
[1750198297454,0.38528635,104730.0,104720.0,0.61433261]
[1750198298208,0.37573872,104730.0,104720.0,0.61433261]
[1750198298398,0.39735339,104750.0,104740.0,0.28489025]
[1750198298690,0.59830514,104750.0,104740.0,0.48473034]
[1750198298867,0.59830514,104750.0,104740.0,0.49427715]
[1750198298868,0.40737436,104750.0,104740.0,0.49427715]
[1750198299673,0.44553948,104750.0,104740.0,0.49427715]
[1750198299837,0.44753948,104750.0,104740.0,0.49427715]
[1750198300034,0.6490167,104750.0,104740.0,0.49427715]
[1750198300240,0.45808592,104750.0,104740.0,0.49427715]
[1750198300662,0.6490167,104750.0,104740.0,0.49427715]
[1750198301116,0.63947153,104750.0,104740.0,0.48473034]
[1750198301888,0.70342064,104750.0,104740.0,0.29792901]
[1750198302094,0.72630477,104750.0,104740.0,0.31702344]
[1750198303114,0.72631464,104750.0,104740.0,0.31702344]
[1750198303724,0.70342064,104750.0,104740.0,0.29792901]
[1750198304021,0.6938742,104750.0,104740.0,0.30747646]
[1750198304378,0.6938742,104750.0,104740.0,0.31702372]
[1750198304583,0.6938742,104750.0,104740.0,0.30747646]
[1750198304801,0.68432767,104750.0,104740.0,0.30747646]
[1750198305008,0.70723865,104750.0,104740.0,0.30747646]
[1750198305536,0.70723865,104750.0,104740.0,0.07418]
[1750198305949,0.53094901,104740.0,104730.0,0.26279885]
[1750198306183,0.55959071,104740.0,104730.0,0.48173484]
[1750198306740,0.36864124,104740.0,104730.0,0.49128274]
[1750198306938,0.36864124,104740.0,104730.0,0.50083046]
[1750198307136,0.35909407,104740.0,104730.0,0.50083046]
[1750198307539,0.36864133,104740.0,104730.0,0.50083046]
[1750198307978,0.35909407,104740.0,104730.0,0.50083046]
[1750198308980,0.36864133,104740.0,104730.0,0.50083046]
[1750198310122,0.36864124,104740.0,104730.0,0.50083046]
[1750198310898,0.36864034,104740.0,104730.0,0.50083046]
[1750198311309,0.37818742,104740.0,104730.0,0.50083046]
[1750198311811,0.38773468,104740.0,104730.0,0.50083046]
[1750198312410,0.37818742,104740.0,104730.0,0.50083046]
[1750198312713,0.36864034,104740.0,104730.0,0.50083046]
[1750198313958,0.37818751,104740.0,104730.0,0.50083046]
[1750198314160,0.36864034,104740.0,104730.0,0.50083046]
[1750198314409,0.37818751,104740.0,104730.0,0.50083046]
[1750198314621,0.36864025,104740.0,104730.0,0.50083046]
[1750198315020,0.37818733,104740.0,104730.0,0.50083046]
[1750198315245,0.36864025,104740.0,104730.0,0.50083046]
[1750198315740,0.37818724,104740.0,104730.0,0.50083046]
[1750198316531,0.34,104740.0,104730.0,0.61161307]
[1750198316727,0.34954672,104740.0,104730.0,0.61161307]
[1750198317344,0.34954663,104740.0,104730.0,0.61161307]
[1750198317812,0.57868415,104740.0,104730.0,0.37358146]
[1750198317950,0.57868415,104740.0,104730.0,0.58292945]
[1750198317951,0.58250316,104740.0,104730.0,0.58292945]
[1750198318143,0.65957472,104740.0,104730.0,0.59247726]
[1750198318347,0.65957472,104740.0,104730.0,0.60202498]
[1750198318580,0.65957472,104740.0,104730.0,0.57182498]
[1750198318787,0.65957472,104740.0,104730.0,0.60372498]
[1750198318991,0.45907826,104740.0,104730.0,0.59417726]
[1750198319208,0.46862552,104740.0,104730.0,0.60372498]
[1750198320120,0.6595749,104740.0,104730.0,0.42286724]
[1750198320356,0.38200688,104740.0,104730.0,0.48341122]
[1750198320572,0.38200688,104740.0,104730.0,0.4834114]
[1750198320807,0.39155423,104740.0,104730.0,0.49295912]
[1750198321035,0.39155423,104740.0,104730.0,0.49295921]
[1750198321244,0.58250324,104740.0,104730.0,0.50250693]
[1750198321389,0.38200688,104740.0,104730.0,0.50250693]
[1750198321596,0.38200643,104740.0,104730.0,0.50250693]
[1750198322051,0.39155306,104740.0,104730.0,0.50250693]
[1750198322278,0.3820058,104740.0,104730.0,0.61328954]
[1750198322415,0.3915527,104740.0,104730.0,0.61328954]
[1750198322591,0.34954663,104740.0,104730.0,0.61328954]
[1750198322799,0.35909344,104740.0,104730.0,0.61328954]
[1750198323020,0.01909344,104740.0,104730.0,0.61328954]
[1750198323432,0.02864052,104740.0,104730.0,0.61328954]
[1750198323910,0.03818778,104740.0,104730.0,0.61328954]
[1750198324334,0.02864052,104740.0,104730.0,0.61328954]
[1750198324781,0.01909344,104740.0,104730.0,0.61328954]
[1750198324994,0.02864043,104740.0,104730.0,0.61328954]
[1750198325208,0.03818751,104740.0,104730.0,0.61328954]
[1750198325417,0.01909353,104740.0,104730.0,0.61328954]
[1750198325642,0.01909344,104740.0,104730.0,0.61328954]
[1750198325851,0.02864043,104740.0,104730.0,0.61328954]
[1750198326058,0.01909344,104740.0,104730.0,0.61328954]
[1750198326474,0.35909344,104740.0,104730.0,0.61328954]
[1750198326681,0.36864034,104740.0,104730.0,0.61328954]
[1750198328103,0.34,104740.0,104730.0,0.61328954]
[1750198328459,0.34,104740.0,104730.0,0.90538954]
[1750198328692,0.06155136,104750.0,104740.0,0.2986311]
[1750198328892,0.06155136,104750.0,104740.0,0.39487286]
[1750198329941,0.07109707,104750.0,104740.0,0.39487286]
[1750198330349,0.08064306,104750.0,104740.0,0.39487286]
[1750198330559,0.290667,104750.0,104740.0,0.26499636]
[1750198330751,0.290667,104750.0,104740.0,0.48381052]
[1750198331117,0.31984573,104750.0,104740.0,0.48381052]
[1750198331338,0.31029974,104750.0,104740.0,0.43251636]
[1750198331547,0.31029974,104750.0,104740.0,0.44206362]
[1750198331749,0.31029974,104750.0,104740.0,0.45161079]
[1750198331956,0.31029974,104750.0,104740.0,0.45461079]
[1750198333623,0.31029974,104750.0,104740.0,0.46415787]
[1750198333913,0.31029974,104750.0,104740.0,0.49635787]
[1750198334116,0.31029974,104750.0,104740.0,0.50590486]
[1750198335867,0.39957753,104750.0,104740.0,0.48681079]
[1750198336078,0.4129544,104750.0,104740.0,0.44502363]
[1750198336308,0.32367661,104750.0,104740.0,0.45457071]
[1750198336509,0.30075366,104750.0,104740.0,0.45457071]
[1750198336960,0.30075366,104750.0,104740.0,0.48677071]
[1750198337281,0.03872517,104750.0,104740.0,0.4963177]
[1750198337495,0.22965595,104750.0,104740.0,0.4963177]
[1750198337699,0.04827152,104750.0,104740.0,0.50586451]
[1750198338259,0.04827116,104750.0,104740.0,0.50586451]
[1750198338690,0.24874838,104750.0,104740.0,0.50586451]
[1750198339724,0.0578176,104750.0,104740.0,0.50586451]
[1750198339935,0.25829491,104750.0,104740.0,0.4963177]
[1750198340287,0.29762269,104750.0,104740.0,0.4963177]
[1750198341120,0.09714538,104750.0,104740.0,0.50586396]
[1750198341341,0.28807616,104750.0,104740.0,0.50586396]
[1750198341544,0.29762269,104750.0,104740.0,0.50586396]
[1750198341955,0.09714538,104750.0,104740.0,0.50586396]
[1750198342478,0.08759894,104750.0,104740.0,0.50586396]
[1750198343063,0.28807625,104750.0,104740.0,0.50586396]
[1750198343275,0.08759894,104750.0,104740.0,0.50586396]
[1750198343842,0.03932778,104750.0,104740.0,0.61664657]
[1750198344274,0.05841948,104750.0,104740.0,0.61664657]
[1750198344494,0.06796556,104750.0,104740.0,0.61664657]
[1750198344720,0.07751182,104750.0,104740.0,0.61664657]
[1750198344921,0.07751182,104750.0,104740.0,0.45860657]
[1750198345134,0.08705826,104750.0,104740.0,0.60709958]
[1750198345335,0.07751182,104750.0,104740.0,0.60709958]
[1750198345537,0.06796556,104750.0,104740.0,0.60709958]
[1750198345786,0.07751182,104750.0,104740.0,0.60709958]
[1750198345985,0.43216624,104760.0,104740.0,0.59755241]
[1750198346198,0.43216624,104760.0,104750.0,0.23307722]
[1750198347144,0.43216624,104760.0,104750.0,0.24262348]
[1750198347345,0.24125302,104760.0,104750.0,0.28256965]
[1750198347552,0.22787551,104760.0,104750.0,0.29211555]
[1750198347774,0.47606471,104760.0,104750.0,0.29211555]
[1750198347991,0.28515215,104760.0,104750.0,0.29211555]
[1750198348191,0.47606471,104760.0,104750.0,0.28256965]
[1750198348397,0.46651954,104760.0,104750.0,0.26347722]
[1750198348597,0.4569741,104760.0,104750.0,0.0326]
[1750198348961,0.5246349,104760.0,104750.0,0.19968]
[1750198349161,0.54754422,104760.0,104750.0,0.19968]
[1750198349419,0.59764351,104760.0,104750.0,0.19968]
[1750198349777,0.54754422,104760.0,104750.0,0.19968]
[1750198349982,0.54754422,104760.0,104750.0,0.39061078]
[1750198350251,0.48823733,104760.0,104750.0,0.19968]
[1750198351162,0.48823733,104760.0,104750.0,0.40015722]
[1750198351361,0.48823733,104760.0,104750.0,0.46225722]
[1750198351795,0.48823908,104760.0,104750.0,0.46225722]